Cogmind - Beta 16.1 *** ADVENTURER MODE // 2026.03.17 @ 23:20:26 Player: grantinator Result: Core destroyed Performance ------------- Evolutions (3) 1500 Regions Visited (8) 1600 Robots Destroyed (167) 835 Value Destroyed (5838) 5838 Prototype IDs (11) 220 Alien Tech Used (0) 0 Bonus (2345) 2345 TOTAL SCORE: 12338 Bonus ------- High Alert Combat Kills 556 Follower Combat Kills 589 Entered Garrisons 200 Used RIF Installer 500 Entered DSFs 500 Cogmind --------- Core Integrity 0/700 Matter 21/300 Energy 73/240 System Corruption 3% Temperature Critical (1006) Movement Walking (120) Location -7/DSF Parts ------- > --- POWER (1) -------- Nuclear Core > --- PROPULSION (5) --- Armored Leg Armored Leg Armored Leg Armored Leg Armored Leg > --- UTILITY (4) ------ High-capacity Storage Unit Hacking Suite Relay Coupler [Grunt] (19) Relay Coupler [Heavy] (4) > --- WEAPON (3) ------- Pulse Rifle Gatling Laser Improved Remote Datajack > --- INVENTORY (20) --- Light Nuclear Core Improved Deuterium Engine Armored Leg VTOL Module Improved Heat Sink Transmission Jammer Advanced ECM Suite EM Disruption Field Authchip [R/Combat] Authchip [R/Combat] Authchip [R/Combat] Authchip [R/Combat] Relay Coupler [NC] (41) Relay Coupler [NC] (28) Relay Coupler [Brawler] (36) Relay Coupler [Duelist] (29) Relay Coupler [Sentry] (22) Relay Coupler [Sentry] (31) Relay Coupler [Hunter] (22) Peak State ------------ > --- POWER ------------ Improved Deuterium Engine > --- PROPULSION ------- VSS Leg Improved Carbon-fiber Leg Cooled Airjet Linear Gravjet Linear Gravjet > --- UTILITY ---------- High-capacity Storage Unit Hacking Suite Relay Coupler [Swarmer] Relay Coupler [Grunt] > --- WEAPON ----------- Quantum Rifle Precision Assault Rifle Improved Remote Datajack > --- INVENTORY -------- Nuclear Core Cold Fusion Reactor Light Treads Cesium-ion Thruster Field Propulsion Drive Improved Heat Sink Transmission Jammer Advanced ECM Suite EM Disruption Field Relay Coupler [NC] Relay Coupler [Duelist] Relay Coupler [Sentry] Relay Coupler [Hunter] Relay Coupler [Heavy] Gatling Laser Remote Datajack [Rating: 63] Favorites ----------- Power Nuclear Core Engine Improved Ion Engine Power Core Nuclear Core Reactor Cold Fusion Reactor Propulsion Aluminum Leg Treads Light Treads Leg Aluminum Leg Hover Unit Linear Gravjet Flight Unit VTOL Module Utility High-capacity Storage Unit Device ECM Suite Storage High-capacity Storage Unit Processor Melee Analysis Suite Hackware Hacking Suite Protection Hardened Light Armor Plating Weapon Cooled Plasma Cannon Energy Gun Quantum Rifle Energy Cannon Cooled Plasma Cannon Ballistic Gun Precision Assault Rifle Ballistic Cannon Assault Cannon Launcher Grenade Launcher Special Weapon Improved Remote Datajack Impact Weapon Heavy Mace Slashing Weapon Axe Special Melee Weapon Datajack Build | -11 -10 -9 -9 -8 -7 -7 -7 -7 ------- Run | Yrd Mat Mat Sto Mat Fac Gar Fac DSF Slots Evolved 6 | . . 2 . 2 2 . . . Power . | . . . . . . . . . Propulsion 3 | . . 1 . 1 1 . . . Utility 2 | . . 1 . . 1 . . . Weapon 1 | . . . . 1 . . . . Parts Attached 118 | 2 11 15 19 21 8 33 . 9 Power 14 | 1 1 1 5 2 . 3 . 1 Engine 8 | 1 . 1 4 . . 2 . . Core 5 | . 1 . . 2 . 1 . 1 Reactor 1 | . . . 1 . . . . . Propulsion 51 | . 4 5 5 12 1 19 . 5 Treads 9 | . 2 2 2 . . 3 . . Leg 31 | . 2 3 3 8 1 9 . 5 Wheel . | . . . . . . . . . Hover 6 | . . . . 4 . 2 . . Flight 5 | . . . . . . 5 . . Utility 20 | 1 3 3 2 3 2 5 . 1 Device 6 | . . 2 . 2 . 2 . . Storage 3 | 1 2 . . . . . . . Processor 3 | . 1 . . 1 1 . . . Hackware 4 | . . . . . 1 2 . 1 Protection 4 | . . 1 2 . . 1 . . Artifact . | . . . . . . . . . Weapon 33 | . 3 6 7 4 5 6 . 2 Energy Gun 11 | . 1 1 1 1 3 2 . 2 Energy Cannon 3 | . . 1 2 . . . . . Ballistic Gun 7 | . 1 3 1 1 1 . . . Ballistic Cannon 3 | . . . 1 . . 2 . . Launcher 2 | . 1 . . . 1 . . . Special Weapon 2 | . . . . . . 2 . . Impact Weapon 1 | . . . . 1 . . . . Slashing Weapon 3 | . . 1 1 1 . . . . Piercing Weapon . | . . . . . . . . . Special Melee Weapon 1 | . . . 1 . . . . . Unidentified Prototypes 11 | . . 1 7 2 1 . . . Parts Lost 28 | . . . 4 6 . 17 . 1 Power 2 | . . . 1 . . 1 . . Propulsion 13 | . . . 2 3 . 7 . 1 Utility 5 | . . . 1 2 . 2 . . Weapon 8 | . . . . 1 . 7 . . Highest Loss Streak 9 | . . . 3 3 . 9 . 1 To Critical Strikes . | . . . . . . . . . Average Backups 16 | 5 7 9 18 19 19 18 19 17 Power 2 | . 1 1 2 2 2 1 1 1 Propulsion 2 | 2 2 1 3 2 2 2 1 1 Utility 5 | . 1 1 3 5 6 9 16 15 Weapon 5 | 2 2 3 8 7 8 4 1 . Tool/Special . | . . . . . . . . . Unused Backups 32 | . . 4 7 1 1 3 . 16 Power 2 | . . 1 1 . . . . . Propulsion 3 | . . . 1 1 . . . 1 Utility 20 | . . 1 1 . . 3 . 15 Weapon 7 | . . 2 4 . 1 . . . Tool/Special . | . . . . . . . . . Average Slot Usage (%) 93 | . 92 99 96 97 97 86 92 91 Engine 5 | . 11 8 8 1 . 3 . . Core 3 | . 1 2 2 7 4 1 7 7 Treads 4 | . . 1 10 . . 4 . . Leg 25 | . 27 31 21 34 38 18 . 10 Hover 1 | . . . . . . 6 . . Flight 1 | . . . . . . 2 38 20 Device 5 | . . 10 10 4 2 2 . . Storage 9 | . 14 11 11 9 7 7 7 7 Processor 3 | . 7 2 . 6 12 1 . . Hackware 3 | . . . . . 4 10 23 23 Protection 4 | . . 8 9 6 . 1 . . Energy Gun 3 | . 5 . . 3 9 4 7 13 Energy Cannon 4 | . . 1 11 5 . 2 . . Ballistic Gun 6 | . 13 17 . 9 5 4 . . Ballistic Cannon 1 | . . . 1 . . 2 . . Launcher 1 | . 7 1 . . . . . . Slashing Weapon 3 | . . 1 7 6 7 . . . Peak Build Rating 63 | 2 9 16 27 47 48 63 48 60 Average Rating 29 | 1 7 15 22 33 40 46 48 48 On Entrance 25 | . 2 9 16 24 35 48 48 48 Avg Prop Armor Cover (%) 8 | . . 9 4 . . 8 . . Naked Turns . | . . . . . . . . . Heaviest Build 80 | 10 49 63 67 73 62 80 55 59 Greatest Support 80 | 3 20 40 60 52 72 77 24 80 Greatest Overweight (x) 21 | 3 2 3 1 7 . 21 2 18 Average Overweight (x) . | 2 . . . 1 . 1 2 1 Largest Inventory Capacity 20 | 8 20 20 20 20 20 20 20 20 Average Capacity 17 | 7 9 10 20 20 20 20 20 20 Most Carried 20 | 8 10 12 20 20 20 20 19 19 Average Carried 16 | 6 7 9 18 19 19 18 19 17 Final Capacity 20 | 8 10 20 20 20 20 20 20 20 Final Carried 20 | 8 9 12 20 20 20 19 19 19 Class Distribution -------------------- 33% | Scavenger-Mutant 33% | Mutant 7% | Bothacker-Mutant 7% | Bothacker-Gunner 5% | Commander-Mutant 4% | Hacker-Mutant Dominant Class ---------------- Mutant | -10/Materials Mutant | -9/Materials Scavenger-Mutant | -9/Storage Scavenger-Mutant | -8/Materials Scavenger-Mutant | -7/Factory Bothacker-Mutant | -7/Garrison Bothacker-Mutant | -7/Factory Bothacker-Gunner | -7/DSF Resources | -11 -10 -9 -9 -8 -7 -7 -7 -7 ----------- Run | Yrd Mat Mat Sto Mat Fac Gar Fac DSF Matter Collected 3162 | 217 152 585 449 517 278 891 . 73 Remotely . | . . . . . . . . . Salvage Created 6178 | . 242 821 1602 1550 661 1302 . . Parts 370 | . 22 62 101 86 41 58 . . Haulers Intercepted 11 | . 1 2 4 3 1 . . . Recyclers Shooed 1 | . . . . . 1 . . . Parts Field Recycled . | . . . . . . . . . Retrieved Matter . | . . . . . . . . . Parts Self-Destructed . | . . . . . . . . . Prevented . | . . . . . . . . . Parts Restored . | . . . . . . . . . Kills | -11 -10 -9 -9 -8 -7 -7 -7 -7 ------- Run | Yrd Mat Mat Sto Mat Fac Gar Fac DSF Combat Hostiles Destroyed 127 | . 9 17 28 27 12 34 . . Melee 44 | . . 2 25 9 2 6 . . Guns 47 | . 4 15 . 13 5 10 . . Cannons 14 | . . . 1 4 . 9 . . AOE 20 | . 5 . 1 1 4 9 . . Classes Destroyed 15 | . 4 3 2 4 1 1 . . Worker 2 | . . . 1 1 . . . . Builder 3 | . . . . 2 1 . . . Tunneler 1 | . . . . 1 . . . . Hauler 11 | . 1 2 4 3 1 . . . Recycler 6 | . . 2 4 . . . . . Mechanic 1 | . . . . 1 . . . . Operator 6 | . . 2 2 1 1 . . . Watcher 9 | . 2 2 . 3 2 . . . Swarmer 40 | . 6 7 8 6 4 9 . . Grunt 55 | . 3 6 10 13 5 18 . . Brawler 2 | . . . . 1 . 1 . . Duelist 3 | . . . 1 1 . 1 . . Sentry 24 | . . 4 9 7 1 3 . . Specialist 2 | . . . . . . 2 . . Programmer 2 | . . . . . 2 . . . Best Kill Streak 7 | . 4 4 6 6 5 7 . . Combat Bots Only 7 | . 3 4 5 6 4 7 . . Max Kills in Single Turn 4 | . 4 1 1 3 4 3 . . Gunslinging . | . . . . . . . . . Exploded 4 | . 3 . 1 1 4 3 . . Melee 1 | . . 1 1 1 1 1 . . Uniques/NPCs Destroyed . | . . . . . . . . . Combat | -11 -10 -9 -9 -8 -7 -7 -7 -7 -------- Run | Yrd Mat Mat Sto Mat Fac Gar Fac DSF Hostile Shots Fired 837 | . 30 83 161 141 57 358 . 7 Missed 238 | . 11 21 43 34 15 114 . . Hits 599 | . 19 62 118 107 42 244 . 7 Melee 21 | . . . 5 13 . 3 . . Projectile 578 | . 19 62 113 94 42 241 . 7 Critical Strikes 17 | . . . 4 5 4 3 . 1 Damage Taken 6581 | . 178 586 1137 1363 432 2480 . 405 Core 1286 | . 68 31 214 228 96 336 . 313 Absorbed by Shields . | . . . . . . . . . Ignored by Resistances 1880 | . 55 170 340 396 128 750 . 41 Regen/Repaired (Parts) 204 | . 90 . 114 . . . . . Core Remaining (%) 67 | 100 72 . 38 58 . . . . Volleys Fired 222 | . 19 42 23 38 24 74 . 2 Largest 3 | . 2 2 2 3 2 3 . 1 Hottest 211 | . 60 55 103 118 105 211 . 7 Shots Fired 434 | . 38 80 36 91 49 138 . 2 Gun 301 | . 34 77 3 70 48 69 . . Cannon 99 | . . . 30 19 . 50 . . Launcher 20 | . 4 3 3 2 1 7 . . Special 14 | . . . . . . 12 . 2 Kinetic 210 | . 19 77 10 51 10 43 . . Thermal 124 | . 15 . 23 19 3 64 . . Explosive 20 | . 4 3 3 2 1 7 . . Electromagnetic 66 | . . . . 19 35 12 . . Robot Hit Streak 24 | . 4 10 12 24 16 23 . 3 Robot Miss Streak 4 | . 3 4 1 3 2 3 . . Penetration Max . | . . . . . . . . . Secondary Targets 2 | . . . . . 1 1 . . Max Gunslinging Chain 1 | . . . . . 1 1 . . Shots Hit Robots 429 | . 21 61 92 107 44 102 . 2 Core Hits 234 | . 19 32 37 49 31 66 . . Critical Kills 2 | . . . 1 1 . . . . Critical Parts Destroyed 1 | . . . . . . 1 . . Critical Strikes 21 | . . . 9 4 1 7 . . Meltdown 1 | . . . 1 . . . . . Blast 2 | . . . . . . 2 . . Corrupt 1 | . . . . . . 1 . . Smash 2 | . . . . 1 . 1 . . Sever 15 | . . . 8 3 1 3 . . Melee Attacks 188 | . . 7 80 47 9 45 . . Impact 26 | . . . . 2 . 24 . . Slashing 161 | . . 7 79 45 9 21 . . Piercing . | . . . . . . . . . Sneak Attacks 29 | . . 2 16 8 3 . . . Combat Hostiles . | . . . . . . . . . Follow-up Attacks . | . . . . . . . . . Damage Inflicted 12913 | . 476 1242 3456 3153 1317 3269 . . Guns 3523 | . 181 934 14 927 675 792 . . Cannons 1746 | . . . 398 290 . 1058 . . Explosions 1505 | . 295 29 51 170 242 718 . . Melee 6132 | . . 279 2986 1766 400 701 . . Ramming 7 | . . . 7 . . . . . Kinetic 2480 | . 107 934 97 641 128 573 . . Thermal 1901 | . 74 . 315 290 102 1120 . . Explosive 1505 | . 295 29 51 170 242 718 . . Electromagnetic 888 | . . . . 286 445 157 . . Impact 342 | . . . . 137 . 205 . . Slashing 5790 | . . 279 2986 1629 400 496 . . Piercing . | . . . . . . . . . Highest Corruption 3 | . . . . . 1 3 3 3 Average Corruption 2 | . . . . . 1 2 3 3 Corruption Purged . | . . . . . . . . . Corruption Blocked . | . . . . . . . . . Effects 73 | . . . . . 7 62 . 4 Message Errors 15 | . . . . . 2 13 . . Matter Fused 23 | . . . . . 2 19 . 2 Heat Flow Errors 10 | . . . . . 1 9 . . Energy Discharges 9 | . . . . . 1 8 . . Data Loss (minor) 6 | . . . . . . 5 . 1 Data Loss (major) 3 | . . . . . . 3 . . Misfires 5 | . . . . . 1 4 . . Alerts 2 | . . . . . . 1 . 1 Overload Shots . | . . . . . . . . . Overflow Damage 559 | . . 44 149 183 63 120 . . Projectiles 79 | . . . 5 3 . 71 . . Explosions 2 | . . . . . . 2 . . Melee 478 | . . 44 144 180 63 47 . . Knockbacks 7 | . . . . . . 7 . . Impact . | . . . . . . . . . Kinetic 6 | . . . . . . 6 . . Secondary 1 | . . . . . . 1 . . Self-Inflicted Damage 55 | . 19 . . . . 36 . . Shots 3 | . 1 . . . . 2 . . Rammed . | . . . . . . . . . Targets Rammed 1 | . . . 1 . . . . . Kicked 1 | . . . 1 . . . . . Crushed . | . . . . . . . . . Highest Temperature 1006 | . 40 25 42 511 234 564 . 1006 Average Temperature 102 | . 15 9 17 108 68 113 . 310 Received Heat Transfer 2685 | . 18 243 417 675 225 1053 . 54 Effects 22 | . . . . 5 . 5 . 12 Shutdowns 3 | . . . . 1 . . . 2 Energy Bleed 4 | . . . . . . 1 . 3 Interference 6 | . . . . 3 . 2 . 1 Matter Decay 3 | . . . . 1 . 1 . 1 Short Circuit 1 | . . . . . . 1 . . Damage (minor) 1 | . . . . . . . . 1 Damage (major) 2 | . . . . . . . . 2 Damage (core) 2 | . . . . . . . . 2 Siege Activations . | . . . . . . . . . Martial Activations . | . . . . . . . . . Shielding Activations . | . . . . . . . . . Robots Disrupted . | . . . . . . . . . Combat Hostiles . | . . . . . . . . . Robots Corrupted 2 | . . . . 1 1 . . . Combat Hostiles 1 | . . . . . 1 . . . Parts Fried 3 | . . . . 2 1 . . . Impact Corruptions 3 | . . . . 2 . 1 . . Robots Melted 1 | . . . 1 . . . . . Combat Hostiles 1 | . . . 1 . . . . . Parts Melted 4 | . . . 2 1 . 1 . . Heat Transferred 2770 | . 175 . 511 507 75 1502 . . Parts Sabotaged . | . . . . . . . . . Parts Stolen . | . . . . . . . . . Parts Stripped . | . . . . . . . . . Power Chain Reactions . | . . . . . . . . . Alert | -11 -10 -9 -9 -8 -7 -7 -7 -7 ------- Run | Yrd Mat Mat Sto Mat Fac Gar Fac DSF Maximum Alert Level 5 | . . . . 1 . 5 3 3 Low Security (%) 70 | 100 100 100 100 88 100 5 . . Level 1 3 | . . . . 11 . 8 . . Level 2 4 | . . . . . . 13 . 22 Level 3 8 | . . . . . . 24 100 77 Level 4 5 | . . . . . . 21 . . Level 5 6 | . . . . . . 25 . . High Security . | . . . . . . . . . Max Security . | . . . . . . . . . Sterilizations 1 | . . . . . . . . 1 Peak Influence 2300 | . 100 95 118 268 147 2300 1046 831 Initial 1046 | . . . . . . 19 1046 639 Average 351 | . 14 26 23 54 38 1145 1041 760 Influence Increases 5865 | . 274 508 1082 880 393 2471 . 257 Destroy 0b10 Robot/C 2920 | . 180 340 720 580 240 700 . 160 Destroy 0b10 Robot/NC 220 | . 15 40 75 60 25 . . 5 Destroy Leader 604 | . 36 88 192 152 66 40 . 30 Allied During Kill 81 | . . . 50 11 . 2 . 18 Successful Hack 42 | . 2 . 6 6 18 10 . . Disable Machine 126 | . 27 9 27 . 27 27 . 9 Anti-Garrison Action 1300 | . . . . . . 1300 . . Destroy Structure 212 | . 14 31 12 11 17 122 . 5 Lose Combat Pursuer 360 | . . . . 60 . 270 . 30 Influence Decreases 5039 | . 274 508 1082 880 360 204 1264 467 Entered New Map 1665 | . . . . . . 14 1254 397 Time Decay 2777 | . 274 508 995 630 360 . 10 . Lost Part 260 | . . . 40 40 . 170 . 10 Lost Ally 187 | . . . 47 60 . 20 . 60 Purge Threat 150 | . . . . 150 . . . . Squads Dispatched 18 | . . 2 6 3 5 . . 2 Investigation 3 | . . . 1 1 1 . . . Extermination 2 | . . . . . 2 . . . Reinforcement 11 | . . 2 3 2 2 . . 2 Assault 2 | . . . 2 . . . . . Garrison . | . . . . . . . . . Intercept . | . . . . . . . . . Searches Triggered . | . . . . . . . . . Construction Impeded . | . . . . . . . . . Haulers Reinforced 1 | . . . . . 1 . . . Active Scanning Responses . | . . . . . . . . . Cargo Convoy Interrupts . | . . . . . . . . . Stealth | -11 -10 -9 -9 -8 -7 -7 -7 -7 --------- Run | Yrd Mat Mat Sto Mat Fac Gar Fac DSF Distress Signals 14 | . . 5 4 4 1 . . . Communications Jammed . | . . . . . . . . . Distress Signals . | . . . . . . . . . Times Spotted 236 | . 18 37 63 43 21 45 . 9 Peak Tracking Total 8 | . 4 5 8 8 4 7 . 5 Tactical Retreats 34 | . . 5 10 4 . 13 . 2 ECM-based Alert Blocks 27 | . . 6 21 . . . . . Traps | -11 -10 -9 -9 -8 -7 -7 -7 -7 ------- Run | Yrd Mat Mat Sto Mat Fac Gar Fac DSF Traps Triggered 8 | . 1 . 1 . . 5 . 1 Indirectly . | . . . . . . . . . Trap Hack Attempts . | . . . . . . . . . Triggered . | . . . . . . . . . Disarmed . | . . . . . . . . . Reprogrammed 9 | . . . . 3 6 . . . Reused . | . . . . . . . . . Traps Extracted . | . . . . . . . . . Installed . | . . . . . . . . . Triggered . | . . . . . . . . . Machines | -11 -10 -9 -9 -8 -7 -7 -7 -7 ---------- Run | Yrd Mat Mat Sto Mat Fac Gar Fac DSF Machines Disabled 19 | . 3 1 3 . 3 8 . 1 Max in Single Turn 2 | . 2 1 1 . 1 2 . . Garrison Relay 4 | . . . . . . 4 . . Machines Repaired . | . . . . . . . . . Machines Dismantled . | . . . . . . . . . Machines Sabotaged . | . . . . . . . . . Overloaded Fab Kills . | . . . . . . . . . Hacking | -11 -10 -9 -9 -8 -7 -7 -7 -7 --------- Run | Yrd Mat Mat Sto Mat Fac Gar Fac DSF Machines Accessed 19 | . 3 2 7 2 3 1 1 . Terminals 11 | . 1 1 4 2 1 1 1 . Fabricators . | . . . . . . . . . Repair Stations 3 | . 1 . 2 . . . . . Recycling Units 2 | . 1 . 1 . . . . . Scanalyzers 2 | . . 1 . . 1 . . . Garrison Access 1 | . . . . . 1 . . . Total Hacks 46 | . 8 7 17 5 5 2 2 . Successful 30 | . 6 5 10 4 3 1 1 . Failed 16 | . 2 2 7 1 2 1 1 . Catastrophic 1 | . . . 1 . . . . . Database Lockouts . | . . . . . . . . . Manual . | . . . . . . . . . Terminals 26 | . 3 2 9 5 3 2 2 . Fabricators . | . . . . . . . . . Repair Stations 11 | . 4 . 7 . . . . . Recycling Units 2 | . 1 . 1 . . . . . Scanalyzers 6 | . . 5 . . 1 . . . Garrison Access 1 | . . . . . 1 . . . Terminal Hacks 13 | . 1 1 3 4 2 1 1 . Record 3 | . . 1 . 1 1 . . . Robot Analysis 1 | . 1 . . . . . . . Open Door 3 | . . . 3 . . . . . Open DSF 1 | . . . . . . . 1 . Emergency Access Points 1 | . . . . . . 1 . . Unreport Threat 1 | . . . . 1 . . . . Reprogram Traps 3 | . . . . 2 1 . . . Fabricator Hacks . | . . . . . . . . . Repair Station Hacks 10 | . 4 . 6 . . . . . Scan Component 6 | . 2 . 4 . . . . . Repair 4 | . 2 . 2 . . . . . Recycling Unit Hacks 2 | . 1 . 1 . . . . . Report Inventory 2 | . 1 . 1 . . . . . Scanalyzer 4 | . . 4 . . . . . . Retrieve Study 4 | . . 4 . . . . . . Garrison Access Hacks 1 | . . . . . 1 . . . Unlock Access 1 | . . . . . 1 . . . Unauthorized Hacks . | . . . . . . . . . Terminals . | . . . . . . . . . Fabricators . | . . . . . . . . . Repair Stations . | . . . . . . . . . Recycling Units . | . . . . . . . . . Scanalyzers . | . . . . . . . . . Garrison Access . | . . . . . . . . . Data Cores Recovered 2 | . . . . 1 1 . . . Used . | . . . . . . . . . Hacking Detections 14 | . 1 2 5 2 2 1 1 . Full Trace Events 5 | . 1 . 2 1 1 . . . Feedback Events 1 | . . . . . 1 . . . Corruption 1 | . . . . . 1 . . . Feedback Blocked . | . . . . . . . . . Robot Schematics Acquired . | . . . . . . . . . Robots Built . | . . . . . . . . . Authchips . | . . . . . . . . . Time . | . . . . . . . . . Total Robot Build Rating . | . . . . . . . . . Part Schematics Acquired . | . . . . . . . . . Parts Built . | . . . . . . . . . Authchips . | . . . . . . . . . Time . | . . . . . . . . . Total Part Build Rating . | . . . . . . . . . Part Studies Acquired 3 | . . 3 . . . . . . Parts Repaired 4 | . 2 . 2 . . . . . Time 122 | . 64 . 58 . . . . . Parts Recycled . | . . . . . . . . . Recycled Matter . | . . . . . . . . . Retrieved Matter . | . . . . . . . . . Retrieved Components . | . . . . . . . . . Parts Scanalyzed . | . . . . . . . . . Part Schematics Acquired . | . . . . . . . . . Parts Damaged . | . . . . . . . . . Bothacking | -11 -10 -9 -9 -8 -7 -7 -7 -7 ------------ Run | Yrd Mat Mat Sto Mat Fac Gar Fac DSF Used RIF Installer 1 | . . . . . . 1 . . Robots Hacked 9 | . . . . . . 7 . 2 Non-combat . | . . . . . . . . . Combat 9 | . . . . . . 7 . 2 Robot Hacks Applied 9 | . . . . . . 7 . 2 parse_system 1 | . . . . . . 1 . . overload_power 5 | . . . . . . 4 . 1 go_dormant 1 | . . . . . . 1 . . formatsys_high 2 | . . . . . . 1 . 1 Relay Couplers Released 17 | . . . . . 4 13 . . Machine Destruction 13 | . . . . . . 13 . . Programmers 4 | . . . . . 4 . . . Attached 3 | . . . . . . 2 . 1 Fabnet Peak Effective % . | . . . . . . . . . Robots Rewired 1 | . . . 1 . . . . . Allies Hacked . | . . . . . . . . . Hacks Repelled . | . . . . . . . . . Allies | -11 -10 -9 -9 -8 -7 -7 -7 -7 -------- Run | Yrd Mat Mat Sto Mat Fac Gar Fac DSF Total Allies 16 | . . . 12 . . 3 . 1 Largest Group 10 | . . . 10 8 . 2 2 3 Highest-Rated Group 238 | . . . 88 72 . 157 154 238 Highest-Rated Ally 95 | . . . 31 16 . 95 95 95 Total Orders 5 | . . . 3 2 . . . . FOLLOW 3 | . . . 3 . . . . . EXPLORE 2 | . . . . 2 . . . . Ally Attacks 125 | . . . 78 18 . 1 . 28 Total Damage 2146 | . . . 806 122 . 79 . 1139 Kills 23 | . . . 12 2 . 1 . 8 Allies Corrupted 1 | . . . . 1 . . . . Allies Melted . | . . . . . . . . . Intel | -11 -10 -9 -9 -8 -7 -7 -7 -7 ------- Run | Yrd Mat Mat Sto Mat Fac Gar Fac DSF Active Infowar (turns) 6052 | . . 1434 2994 442 390 792 . . Sensors 1879 | . . 334 . 363 390 792 . . ECM 4173 | . . 1100 2994 79 . . . . Robot Analysis Total 1 | . 1 . . . . . . . Derelict Logs Recovered . | . . . . . . . . . Drone Launches 4 | . . . . 4 . . . . Drone Recoveries 4 | . . . . 4 . . . . Exploration | -11 -10 -9 -9 -8 -7 -7 -7 -7 ------------- Run | Yrd Mat Mat Sto Mat Fac Gar Fac DSF Turns Passed 12704 | 118 1557 1470 3048 1733 1011 3426 37 304 Spaces Moved 5367 | 62 908 618 1074 663 554 1336 21 131 Core 89 | 62 . . . . . 26 . 1 Treads 598 | . . 3 327 . . 268 . . Legs 4098 | . 908 615 747 660 554 555 . 59 Wheels . | . . . . . . . . . Hover 346 | . . . . 3 . 343 . . Flight 236 | . . . . . . 144 21 71 Fastest Speed 50 | 50 120 120 160 162 113 116 185 120 Average Speed 171 | 174 120 165 201 184 114 198 185 198 Slowest Speed 1100 | 200 260 400 240 470 118 1100 185 950 Overloaded Moves . | . . . . . . . . . Propulsion Burnouts . | . . . . . . . . . Robots Hopped . | . . . . . . . . . Potential Cave-ins . | . . . . . . . . . Cave-ins Triggered . | . . . . . . . . . Exploration Rate (%) 53 | 4 96 48 87 51 11 96 1 87 Regions Visited 8 Branch Regions 1 Pre-discovered Areas . | . . . . . . . . . Known Exits Taken 3 | . 1 . . . 1 . 1 . Unknown Exits Taken 4 | 1 . 1 1 1 . . . . Scrap Searched . | . . . . . . . . . Spaces Dug 7 | . . . 2 . . 5 . . Terrain Destroyed 127 | . 14 25 17 6 15 50 . . Melee 5 | . . . . . . 5 . . Projectile 6 | . . . 4 . . 2 . . AOE 116 | . 14 25 13 6 15 43 . . Terrain Rammed . | . . . . . . . . . Walls Destroyed . | . . . . . . . . . Machines Disabled . | . . . . . . . . . Actions | -11 -10 -9 -9 -8 -7 -7 -7 -7 --------- Run | Yrd Mat Mat Sto Mat Fac Gar Fac DSF Total 8174 | 72 1332 982 1785 1016 869 1923 20 175 Wait 1979 | . 384 259 526 197 256 332 . 25 Move 5360 | 61 907 617 1073 662 554 1335 20 131 Hop . | . . . . . . . . . Pick Up 114 | 9 7 15 24 17 6 33 . 3 Fast Attach 35 | 1 1 4 3 11 1 10 . 4 Attach 54 | 1 6 4 7 6 1 26 . 3 Detach 3 | . . 1 2 . . . . . Swap 112 | . 7 18 27 16 12 30 . 2 Drop 99 | . 1 15 19 22 6 31 . 5 Fire 222 | . 19 42 23 38 24 74 . 2 Melee 188 | . . 7 80 47 9 45 . . Ram . | . . . . . . . . . Kick 1 | . . . 1 . . . . . Crush . | . . . . . . . . . Escape Stasis 5 | . . . . . . 5 . . Rewire 2 | . . . . . . 2 . . Trap . | . . . . . . . . . Miscellaneous . | . . . . . . . . . Route ------- -11/Scrapyard -10/Materials (discovered 6 exits: *Mat x3 / [*Min x2] / [*Sub]) -9/Materials (discovered 4 exits: *Mat / [*Min x2] / *Sto) -9/Storage -8/Materials (discovered 2 exits: *Fac x2) -7/Factory -7/Garrison (discovered 4 exits: *Fac x4) -7/Factory -7/DSF (discovered 1 exit: [*Fac]) History --------- Turn | Location | Event 13 | -11/Scrapyard | Discovered new exit (range 15) 119 | -11/Scrapyard | Entered Materials 314 | -10/Materials | Build established: Mutant 729 | -10/Materials | Discovered new exit (range 16) 826 | -10/Materials | Discovered new exit (range 13) 871 | -10/Materials | Discovered new exit (range 5) 969 | -10/Materials | Discovered new exit (range 10) 1050 | -10/Materials | Discovered new exit (range 11) 1431 | -10/Materials | Repaired Lgt. Nuclear Core 1460 | -10/Materials | Repaired Ion Engine 1513 | -10/Materials | Discovered new exit (range 7) 1675 | -10/Materials | Identified exit to Materials 1676 | -10/Materials | Entered another Materials area 1676 | -9/Materials | Evolved 2 slots: Propulsion x1, Utility x1 2496 | -9/Materials | Discovered new exit (range 11) 2683 | -9/Materials | Discovered new exit (range 15) 2826 | -9/Materials | Discovered new exit (range 10) 2944 | -9/Materials | Discovered new exit (range 16) 3096 | -9/Materials | Build established: Scavenger-Mutant 3146 | -9/Materials | Entered Storage 3539 | -9/Storage | Repaired Med. Armor Plating 4162 | -9/Storage | Met a pair of Derelict thieves 4338 | -9/Storage | Lost 3 parts (2n1u) 4865 | -9/Storage | Core integrity fell below 50% 4935 | -9/Storage | Build established: Mutant 5511 | -9/Storage | Assisted by bots powering up and referring to "LRC-V3" 5800 | -9/Storage | Build established: Commander-Mutant 6021 | -9/Storage | Discovered new exit (range 16) 6142 | -9/Storage | Repaired ECM Suite 6194 | -9/Storage | Entered Materials 6194 | -8/Materials | Accompanied by 8 allies 6194 | -8/Materials | Evolved 2 slots: Propulsion x1, Weapon x1 6255 | -8/Materials | Lost 4 allies 6424 | -8/Materials | Lost 4 allies 6576 | -8/Materials | Discovered new exit (range 17) 7055 | -8/Materials | Build established: Mutant 7387 | -8/Materials | Discovered new exit (range 8) 7455 | -8/Materials | Build established: Scavenger-Mutant 7522 | -8/Materials | Lost 3 parts (2n1u) 7927 | -8/Materials | Entered Factory 7927 | -7/Factory | Evolved 2 slots: Propulsion x1, Utility x1 8938 | -7/Factory | Identified exit to Garrison 8938 | -7/Factory | Entered Garrison 9118 | -7/Garrison | Garrison Relay disabled 9128 | -7/Garrison | Triggered checkpoint 9274 | -7/Garrison | Triggered checkpoint 9428 | -7/Garrison | Triggered checkpoint 9470 | -7/Garrison | Garrison Relay disabled 9595 | -7/Garrison | Discovered new exit (range 10) 9637 | -7/Garrison | Discovered new exit (range 6) 9644 | -7/Garrison | Triggered checkpoint 9732 | -7/Garrison | Triggered checkpoint 9902 | -7/Garrison | Triggered checkpoint 9908 | -7/Garrison | Triggered checkpoint 9949 | -7/Garrison | Destroyed 7 combat bots 9952 | -7/Garrison | Build established: Hacker-Tank 10122 | -7/Garrison | Triggered checkpoint 10202 | -7/Garrison | Lost 9 parts (5n1u3w) 10459 | -7/Garrison | Build established: Hacker-Mutant 10595 | -7/Garrison | Garrison Relay disabled 10648 | -7/Garrison | Discovered new exit (range 9) 10679 | -7/Garrison | Installed Relay Interface Framework 11003 | -7/Garrison | Build established: Bothacker-Mutant 11052 | -7/Garrison | Core integrity fell below 50% 11594 | -7/Garrison | Triggered checkpoint 11725 | -7/Garrison | Found embedded Infiltrators 11780 | -7/Garrison | Garrison Relay disabled 11852 | -7/Garrison | Build established: Bothacker-Gunner 11882 | -7/Garrison | Discovered new exit (range 14) 12364 | -7/Garrison | Entered Factory 12364 | -7/Factory | Accompanied by 2 allies 12367 | -7/Factory | Build established: Bothacker-Mutant 12401 | -7/Factory | Identified exit to DSF 12401 | -7/Factory | Entered DSF 12401 | -7/DSF | Accompanied by 2 allies 12431 | -7/DSF | Additional patrols routed to DSF 12551 | -7/DSF | Discovered new exit (range 16) 12591 | -7/DSF | Sterilization system engaged 12611 | -7/DSF | Ambient heat levels rising (+10) 12626 | -7/DSF | Ambient heat levels rising (+10) 12641 | -7/DSF | Ambient heat levels rising (+10) 12656 | -7/DSF | Ambient heat levels rising (+10) 12671 | -7/DSF | Ambient heat levels rising (+10) 12686 | -7/DSF | Ambient heat levels rising (+10) 12701 | -7/DSF | Ambient heat levels rising (+10) 12705 | -7/DSF | Core integrity fell below 20% 12706 | -7/DSF | Core destroyed Last Messages --------------- uncontrollably. 12681_ X-57 Shotgunner heat damages VSS Leg. 12686_ ALERT: Ambient heat levels +10. 12687_ Overheating: Gatling Laser damaged (-32). 12689_ X-57 Shotgunner heat damages core (-4). 12690_ Power failure, Nuclear Core shutdown. 12691_ Overheating: Matter decay (-5). 12693_ Overheating: Energy bleed (-51). 12695_ Overheating: Energy bleed (-36). 12698_ Overheating: Energy bleed (-29). 12699_ Power failure, Nuclear Core shutdown. 12699_ Overheating: Arm. Leg damaged (-211). 12700_ Overheating: Arm. Leg damaged (-171). 12701_ ALERT: Ambient heat levels +10. 12704_ Overheating: System interference. 12704_ Imp. Remote Datajack temporarily disabled. 12705_ Overheating: Core damaged (-140). 12706_ Overheating: Core damaged (-119). [Achievement: 10k Club] Map ----- +----------------------------------------------------+ | | | | | | | | | | | | | | | | | | | | | | | | | | | | | | | ??????????????????????????????????????????????? | | ??????????????????????????????????????????????? | | ??????????????????????????????????????????????? | | ??????????????????????????????????????????????? | | ??????????????????????????????????????""??????? | | ?????????????????????????????????????#"#??????? | | ????????????????????#########???????##"####???? | | ????????????????###?#!!///!!#########"""""#???? | | ????????""%"##//#///#!!///!!# # ##"""""#???? | | ????????"<%% ""##"?? | | ????????" @ """""?? | | ????????" ??#//#///### ### #!!##% ""##??? | | ????????# ??????????## ### #!!### ###???? | | ????????# ?????????? ########## ##????? | | ???????? ?????????# #??????#!! !#????? | | ???????? ?????????# ^ #??????#!! !#????? | | ???????## #????????###^^^###??????### ##????? | | ???????# /????????# !!#??????#!! #????? | | ???????# /????????# = !!#??????#!! #????? | | ???????? /????????# == !!#??????#!! #????? | | ??????### ############= ############ ###???? | | ??????# ##!!!#!!!###! ###!!!# ## !!#???? | | ??????# !%%##!!!#!! "# %##!!!# ## !!#???? | | ??????#!! %= *!=! ==#???? | | ??????#!! * !% ==#???? | | ??????#!! =% * % ==#???? | | ??????# ## #===" %! ##!!!# ## *#???? | | ??????# ## #===### [ ###!!!# ## **#???? | | ??????### ############ #################???? | | ???????? !????????#!! ]]#?????????????????? | | ???????# !????????#!! ]]#?????????????????? | | ???????# !????????#!! ]]#?????????????????? | | ???????## ##???????### ###?????????????????? | | ???????#! ????????# #?????????????????? | | ???????#! ????????# #?????????????????? | +----------------------------------------------------+ Best States ------------- Heat Dissipation 48 Energy Generation 17 Energy Capacity 290 Matter Stores 300 Matter Capacity 300 Sight Range 16 Robot Scan Range 15 Terrain Scan Density 10 ECM Strength 1 Armor Coverage 225 Resistance: KI 20 Resistance: TH 20 Resistance: EX 20 Resistance: EM 20 Resistance: I 20 Resistance: S 20 Resistance: P 20 Evasion (%) 55 Melee Accuracy 5 Target Analysis 5 Recoil Reduction 3 Offensive Hacking 20 Relay Coupler Types 2 Relay Coupler Value 46 Authchip Count 4 Item Schematics ----------------- None Robot Schematics ------------------ None Fabricated ------------ Nothing Repaired ---------- Lgt. Nuclear Core | 14% | -10/Materials Ion Engine | 21% | -10/Materials Med. Armor Plating | 15% | -9/Storage ECM Suite | 35% | -9/Storage Studied --------- Aluminum Leg | -9/Materials | Hacked Imp. Ion Engine | -9/Materials | Hacked Grenade Launcher | -9/Materials | Hacked Alien Tech Used ----------------- None Achievements -------------- 10k Club A New Friend Assimilation Complete Botjacking Error 47 Heavy Suspicion Hot Goods Join The Dark Side Mindtrick Challenges ------------ None Game ------ Seed AblativeBurstTorch Manual? 0 Play Time 02:24:49 Cumulative 9.1 hours Start 2026.03.17 @ 20:27:06 End 2026.03.17 @ 23:20:26 Sessions 1 Manual Loads 0 Difficulty Adventurer Special Mode None Game No. 13 Rogue 0 Adventurer 2 Explorer 11 Win Type - Total 0 Types 0/0/0/0/0/0/0/0/0/0 Lore% 11 Gallery% 14 Achievement% 13 Wizard Run 0 Options --------- Layout 1 ASCII 0 Keyboard 0 Movement Numpad Keybinds 0 Fullscreen 2 Font 24/Smallcaps Map View 50x40 Zoom Use 0% Tactical HUD 1 Map Filters NONE Filters NONE Steam 1 RUN: 82712116-3fef-4b00-b368-878604d665c1